bitfinex/quotes_ETHUSD_20251028
["timestamp","ask_amount","ask_price","bid_price","bid_amount"]
[1761635443027,2.189804,4117.9,4117.8,0.002]
[1761635443336,0.634604,4117.9,4117.8,0.002]
[1761635443517,4.61822625,4117.9,4117.8,0.002]
[1761635444035,4.38959812,4117.1,4116.2,0.002]
[1761635444238,0.405504,4116.8,4116.2,0.002]
[1761635444400,2.42901212,4116.9,4116.2,0.002]
[1761635444401,18.04831553,4116.3,4116.2,0.002]
[1761635444595,4.52147017,4116.3,4116.2,0.002]
[1761635444819,3.98456617,4116.3,4116.2,0.002]
[1761635445019,1.5552,4116.3,4116.2,0.002]
[1761635445219,3.98456617,4116.3,4116.2,0.002]
[1761635445423,1.5552,4116.3,4116.2,0.002]
[1761635445737,2.42920431,4116.6,4116.2,14.502]
[1761635445895,1.5552,4116.7,4116.2,14.502]
[1761635446097,2.42926572,4116.5,4116.2,14.502]
[1761635446413,3.98446572,4116.5,4116.2,14.502]
[1761635446616,2.42931797,4116.4,4116.2,14.502]
[1761635447739,2.42926517,4116.5,4116.2,14.502]
[1761635447907,1.5552,4116.5,4116.2,14.502]
[1761635448131,2.42935733,4116.4,4116.2,14.502]
[1761635449476,2.56076617,4116.3,4116.2,14.502]
[1761635449634,2.55096617,4116.3,4116.2,14.502]
[1761635452070,0.1216,4116.3,4116.2,14.502]
[1761635452282,0.1216,4116.3,4116.2,14.9483]
[1761635452479,2.55096617,4116.3,4116.2,14.502]
[1761635452848,2.64996617,4116.3,4116.2,14.502]
[1761635453045,4.10616617,4116.3,4116.2,14.502]
[1761635456070,1.6768,4116.3,4116.2,14.502]
[1761635456253,4.10616617,4116.3,4116.2,14.9483]
[1761635456877,4.10616617,4116.3,4116.2,14.502]
[1761635459473,4.10616617,4116.3,4116.2,18.38]
[1761635459845,8.35666362,4116.3,4116.2,18.38]
[1761635460737,8.45596362,4116.3,4116.2,18.38]
[1761635461042,8.35666362,4116.3,4116.2,18.38]
[1761635461467,4.39012919,4116.2,4116.1,0.012]
[1761635461673,4.48942919,4116.2,4116.1,0.012]
[1761635462872,4.39012919,4116.2,4116.1,0.012]
[1761635463048,0.001,4116.4,4116.1,0.012]
[1761635463249,0.001,4116.4,4116.1,0.2433]
[1761635463454,2.42936617,4116.3,4116.1,0.012]
[1761635463650,8.23512264,4116.2,4116.1,0.012]
[1761635464176,8.23512264,4116.2,4116.1,14.512]
[1761635465044,5.80569745,4116.2,4116.1,14.512]
[1761635465246,8.23512264,4116.2,4116.1,14.512]
[1761635465761,3.98462519,4116.2,4116.1,14.512]
[1761635466276,1.5552,4116.2,4116.1,15.213]
[1761635466440,3.98462519,4116.2,4116.1,15.213]
[1761635466640,3.98462519,4116.2,4116.1,14.512]
[1761635466875,1.5552,4116.2,4116.1,14.512]
[1761635467461,3.98462519,4116.2,4116.1,14.512]
[1761635468153,3.98462519,4116.2,4116.1,18.39]
[1761635470679,1.5552,4116.2,4116.1,18.6166]
[1761635470982,1.5552,4116.2,4116.1,18.39]
[1761635471476,4.10622519,4116.2,4116.1,18.39]
[1761635471676,4.10622519,4116.2,4116.1,3.89]
[1761635472248,4.10622519,4116.2,4116.1,18.39]
[1761635473285,4.10622519,4116.2,4116.1,14.512]
[1761635477949,1.5552,4116.2,4116.1,14.7389]
[1761635478192,1.6768,4116.2,4116.1,15.2021]
[1761635478592,1.6778,4116.2,4116.1,14.7389]
[1761635479608,1.6778,4116.2,4116.1,14.512]
[1761635479819,1.6778,4116.2,4116.1,18.39]
[1761635481992,4.10722519,4116.2,4116.1,18.39]
[1761635482188,1.6778,4116.2,4116.1,18.39]
[1761635482514,1.6778,4116.2,4116.1,18.8359]
[1761635482711,1.6778,4116.2,4116.1,18.39]
[1761635483627,0.1226,4116.2,4116.1,18.39]
[1761635488432,2.55202519,4116.2,4116.1,18.39]
[1761635488910,0.1226,4116.2,4116.1,18.39]
[1761635489725,2.55202519,4116.2,4116.1,18.39]
[1761635490221,0.1226,4116.2,4116.1,18.39]
[1761635491635,0.001,4116.2,4116.1,27.66489894]
[1761635491936,0.001,4116.2,4116.1,27.78649894]
[1761635493033,0.001,4116.2,4116.1,23.53632015]
[1761635497421,0.001,4116.2,4116.1,29.90632015]
[1761635501355,0.001,4116.2,4116.1,27.47683593]
[1761635501508,0.001,4116.2,4116.1,29.90632015]
[1761635504407,0.001,4116.2,4116.1,23.53632015]
[1761635507746,0.001,4116.7,4116.6,2.42918913]
[1761635508047,0.001,4116.7,4116.6,13.57292624]
[1761635508255,0.001,4116.7,4116.6,13.84630635]
[1761635508422,0.001,4116.7,4116.6,28.34630635]
[1761635511235,0.001,4116.7,4116.6,27.91580635]
[1761635511437,0.001,4116.7,4116.6,27.04236113]
[1761635512049,0.001,4116.7,4116.6,21.10286113]
[1761635512379,0.001,4116.7,4116.6,18.8065]
[1761635512723,0.001,4116.7,4116.6,21.23568913]
[1761635513151,0.001,4116.7,4116.6,20.80518913]
[1761635513353,0.001,4116.7,4116.6,23.55913697]
[1761635514260,0.001,4116.7,4116.6,18.376]
[1761635514462,0.001,4116.7,4116.6,20.80518913]
[1761635516587,0.001,4116.7,4116.6,21.23568913]
[1761635518581,0.001,4116.7,4116.6,18.8065]
[1761635518786,0.001,4116.7,4116.6,18.376]
[1761635518986,0.001,4116.7,4116.6,20.80518913]
[1761635520398,0.001,4116.7,4116.6,18.376]
[1761635520594,2.43013012,4116.7,4116.6,18.376]
[1761635520914,2.43013012,4116.7,4116.6,14.5]
[1761635520915,2.65133012,4116.7,4116.6,14.5]
[1761635521360,2.42942519,4116.2,4116.1,0.012]
[1761635521690,2.55102519,4116.2,4116.1,0.012]
[1761635521856,2.65062519,4116.2,4116.1,0.012]
[1761635522266,2.55102519,4116.2,4116.1,14.512]
[1761635522478,2.42948422,4116.1,4116.0,0.002]
[1761635522664,2.52908422,4116.1,4116.0,0.002]
[1761635524900,4.08428422,4116.1,4116.0,0.002]
[1761635525778,4.48978822,4116.1,4116.0,0.002]
[1761635526402,2.42960227,4115.9,4115.8,1e-08]
[1761635526568,7.52812951,4115.9,4115.8,1e-08]
[1761635526771,9.28112951,4115.9,4115.8,1e-08]
[1761635527007,2.42972033,4115.7,4115.6,1e-08]
[1761635527204,3.98492033,4115.7,4115.6,1e-08]
[1761635527370,4.18272033,4115.7,4115.6,1e-08]
[1761635527570,4.58822433,4115.7,4115.6,1e-08]
[1761635532414,4.70982433,4115.7,4115.6,1e-08]
[1761635535101,2.83534241,4115.5,4115.2,0.002]
[1761635535307,9.48906965,4115.5,4115.2,0.002]
[1761635535612,9.58806965,4115.5,4115.2,0.002]
[1761635540740,2.83575577,4114.8,4114.7,0.002]
[1761635540916,9.61108301,4114.8,4114.7,0.002]
[1761635541116,9.71008301,4114.8,4114.7,0.002]
[1761635543648,9.83237381,4114.8,4114.7,0.002]
[1761635543947,9.71008301,4114.8,4114.7,0.002]
[1761635545230,9.61108301,4114.8,4114.7,0.002]
[1761635545832,9.71008301,4114.8,4114.7,0.002]
[1761635548252,9.61108301,4114.8,4114.7,0.002]
[1761635548456,10.22812325,4114.8,4114.7,0.002]
[1761635548614,10.82608301,4114.8,4114.7,0.002]
[1761635549842,10.92508301,4114.8,4114.7,0.002]
[1761635550168,10.82608301,4114.8,4114.7,0.002]
[1761635551372,10.92508301,4114.8,4114.7,0.002]
[1761635552182,9.61108301,4114.8,4114.7,0.002]
[1761635552381,10.82608301,4114.8,4114.7,0.002]
[1761635553997,9.71008301,4114.8,4114.7,0.002]
[1761635554348,10.92508301,4114.8,4114.7,0.002]
[1761635554902,10.82608301,4114.8,4114.7,0.002]
[1761635556901,9.61108301,4114.8,4114.7,0.002]
[1761635557199,10.82608301,4114.8,4114.7,0.002]
[1761635558971,10.92508301,4114.8,4114.7,0.002]
[1761635559175,10.82608301,4114.8,4114.7,0.002]
[1761635559894,14.23853219,4114.8,4114.7,0.002]
[1761635572027,14.33753219,4114.8,4114.7,0.002]
[1761635573699,14.23853219,4114.8,4114.7,0.002]
[1761635573903,14.33753219,4114.8,4114.7,0.002]
[1761635575102,2.83599204,4114.4,4114.3,1e-08]
[1761635575348,7.09148025,4114.4,4114.3,1e-08]
[1761635575506,7.21308025,4114.4,4114.3,1e-08]
[1761635576210,6.80757625,4114.4,4114.3,0.44130001]
[1761635578246,8.36277625,4114.4,4114.3,0.44130001]
[1761635578412,4.10728804,4114.4,4114.3,0.44130001]
[1761635578612,8.36277625,4114.4,4114.3,0.44130001]
[1761635579238,8.36277625,4114.4,4114.3,14.94130001]
[1761635580437,8.20277625,4114.4,4114.3,14.94130001]
[1761635580756,2.55208804,4114.4,4114.3,14.94130001]
[1761635581619,4.25548821,4115.0,4114.3,16.43683001]
[1761635581823,4.25548821,4115.0,4114.3,15.99553001]
[1761635581824,2.43035783,4114.7,4114.3,15.99553001]
[1761635582026,2.43048804,4114.4,4114.3,15.99553001]
[1761635582240,2.43048804,4114.4,4114.3,1.49553001]
[1761635582434,2.43048804,4114.4,4114.3,1e-08]
[1761635582639,2.43048804,4114.4,4114.3,14.50000001]
[1761635582963,2.43048804,4114.4,4114.3,14.94130001]
[1761635583529,2.43044334,4114.5,4114.3,14.94130001]
[1761635583760,2.43044334,4114.5,4114.4,0.4413]
[1761635583948,4.25548821,4114.7,4114.4,0.4413]
[1761635584284,2.4303699,4114.6,4114.4,0.4413]
[1761635584938,2.43042897,4114.5,4114.4,0.4413]
[1761635585337,2.43042897,4114.5,4114.4,4.3173]
[1761635585670,2.43042897,4114.5,4114.4,4.3153]
[1761635585964,2.43042897,4114.5,4114.4,3.876]
[1761635586262,2.43042897,4114.5,4114.4,4.3153]
[1761635588525,2.43042897,4114.5,4114.4,3.876]
[1761635588726,2.43042897,4114.5,4114.4,4.3153]
[1761635589470,2.43042897,4114.5,4114.4,18.8153]
[1761635589676,2.43042897,4114.5,4114.4,18.376]
[1761635590952,2.43042897,4114.5,4114.4,18.8153]
[1761635591338,2.43042897,4114.5,4114.4,18.376]
[1761635591546,2.43042897,4114.5,4114.4,18.8153]
[1761635591785,2.55202897,4114.5,4114.4,18.8153]
[1761635592077,6.80751718,4114.5,4114.4,18.8153]
[1761635592284,6.80751718,4114.5,4114.4,4.3153]
[1761635592737,6.80751718,4114.5,4114.4,18.8153]
[1761635592942,6.80751718,4114.5,4114.4,18.376]
[1761635594267,6.80751718,4114.5,4114.4,18.8336]
[1761635596857,6.80751718,4114.5,4114.4,18.376]
[1761635598268,8.36271718,4114.5,4114.4,3.876]
[1761635598805,8.46171718,4114.5,4114.4,3.876]
[1761635598986,8.76822118,4114.5,4114.4,3.876]
[1761635599295,8.86722118,4114.5,4114.4,3.876]
[1761635599478,8.36271718,4114.5,4114.4,3.876]
[1761635599679,8.36371718,4114.5,4114.4,3.876]
[1761635600195,2.55302897,4114.5,4114.4,3.876]
[1761635600358,2.55302897,4114.5,4114.4,4.3336]
[1761635603598,2.55302897,4114.5,4114.4,18.8336]
[1761635606709,2.55302897,4114.5,4114.4,4.3336]
[1761635607001,2.55302897,4114.5,4114.4,18.8336]
[1761635610781,2.55302897,4114.5,4114.4,18.376]
[1761635611976,2.55302897,4114.5,4114.4,18.8336]
[1761635614420,2.55302897,4114.5,4114.4,4.3336]
[1761635614919,2.55302897,4114.5,4114.4,18.8336]
[1761635615689,2.55302897,4114.5,4114.4,18.376]
[1761635620592,2.55302897,4114.5,4114.4,3.876]
[1761635621119,2.55302897,4114.5,4114.4,18.376]
[1761635621819,7.65952489,4114.5,4114.4,18.376]
[1761635624222,7.65952489,4114.5,4114.4,3.876]
[1761635624737,7.65952489,4114.5,4114.4,18.376]
[1761635625306,7.65952489,4114.5,4114.4,3.876]
[1761635625839,8.38921488,4114.5,4114.4,3.876]
[1761635626541,2.43048804,4114.4,4114.3,1e-08]
[1761635627215,4.08298003,4114.4,4114.3,1e-08]
[1761635629411,4.08298003,4114.4,4114.3,0.44130001]
[1761635630258,4.08298003,4114.4,4114.3,1e-08]
[1761635630722,4.08298003,4114.4,4114.3,0.44130001]
[1761635631231,0.1226,4114.5,4114.3,0.44130001]
[1761635631745,0.1226,4114.5,4114.3,0.94005001]
[1761635631950,2.55304882,4114.5,4114.3,0.94005001]
[1761635632249,2.55304882,4114.5,4114.4,4.3173]
[1761635633119,0.1226,4114.5,4114.4,4.3173]
[1761635636437,2.55302897,4114.5,4114.4,4.3173]
[1761635636954,3.05136732,4114.5,4114.4,3.876]
[1761635637156,4.10822897,4114.5,4114.4,3.876]
[1761635637719,4.10822897,4114.5,4114.4,4.3173]
[1761635637924,0.1226,4114.5,4114.4,4.3173]
[1761635638137,2.55302897,4114.5,4114.4,4.3173]
[1761635642053,2.55302897,4114.5,4114.4,18.8173]
[1761635645854,0.1226,4114.5,4114.4,18.8173]
[1761635646034,2.55302897,4114.5,4114.4,18.8173]
[1761635647386,2.55302897,4114.5,4114.4,3.876]
[1761635647554,8.17756513,4114.5,4114.4,3.876]
[1761635647884,9.19212489,4114.5,4114.4,3.876]
[1761635648087,9.9217989,4114.5,4114.4,3.876]
[1761635648288,9.8227989,4114.5,4114.4,3.876]
[1761635649861,3.98568804,4114.4,4114.3,1e-08]
[1761635652193,3.98568804,4114.4,4114.3,0.22440001]
[1761635652487,3.98568804,4114.4,4114.3,1e-08]
[1761635652692,3.98568804,4114.4,4114.3,0.44000001]
[1761635653068,3.98568804,4114.4,4114.3,1e-08]
[1761635657868,4.10728804,4114.4,4114.3,1e-08]
[1761635663405,4.83696205,4114.4,4114.3,1e-08]
[1761635666722,4.83796205,4114.4,4114.3,1e-08]
[1761635667411,0.001,4114.4,4114.3,3.90030548]
[1761635667609,0.001,4114.4,4114.3,4.56470548]
[1761635667906,0.001,4114.4,4114.3,7.69618562]
[1761635668097,0.001,4114.5,4114.4,2.43048804]
[1761635668293,0.001,4114.5,4114.4,2.87048804]
[1761635668683,0.001,4114.5,4114.4,17.37048804]
[1761635668888,0.001,4114.5,4114.4,21.24648804]
[1761635669203,0.001,4114.5,4114.4,23.60303334]
[1761635671023,0.001,4114.5,4114.4,24.00853734]
[1761635675651,0.001,4114.5,4114.4,25.56373734]
[1761635677332,0.001,4114.5,4114.4,30.67023326]
[1761635677530,0.001,4114.5,4114.4,30.79183326]
[1761635679648,0.001,4114.5,4114.4,30.88906235]
[1761635682413,2.42943903,4116.2,4115.5,2.42983841]
[1761635682612,2.42951013,4116.1,4115.4,6.30085623]
[1761635682819,2.4294388,4116.2,4115.5,3.00183841]
[1761635683018,2.4294388,4116.2,4115.5,17.5990675]
[1761635683219,2.55198798,4116.3,4115.5,17.5990675]
[1761635683707,0.1226,4116.3,4115.5,17.5990675]
[1761635684339,2.55197137,4116.3,4115.5,17.5990675]
[1761635685475,2.55198096,4116.3,4115.5,17.5990675]
[1761635686268,0.1226,4116.3,4115.5,17.5990675]
[1761635686468,0.001,4116.3,4115.5,33.64593965]
[1761635686668,0.001,4116.3,4115.5,36.28638895]
[1761635687250,0.001,4116.3,4115.5,26.04538895]
[1761635692585,0.001,4116.3,4115.5,36.28638895]
[1761635696733,0.001,4116.3,4115.5,30.03798895]
[1761635701635,0.001,4116.3,4115.5,29.63248495]
[1761635701821,0.001,4116.3,4115.5,30.03798895]
[1761635702029,0.1988,4116.2,4115.5,19.5052128]
[1761635702200,0.1008,4115.7,4115.5,14.59722909]
[1761635702739,0.1,4115.6,4115.5,14.59722909]
[1761635703115,0.001,4115.6,4115.5,14.59722909]
[1761635703317,0.001,4115.6,4115.5,17.0270675]
[1761635703510,0.001,4115.6,4115.5,18.97296679]
[1761635704088,0.001,4115.6,4115.5,14.59722909]
[1761635704272,0.1,4115.6,4115.5,14.59722909]
[1761635704435,0.1,4115.6,4115.5,14.5]
[1761635707157,2.52977937,4115.6,4115.5,14.5]
[1761635708473,0.1,4115.6,4115.5,14.5]
[1761635709146,2.52977937,4115.6,4115.5,14.5]
[1761635709553,0.1,4115.6,4115.5,14.5]
[1761635711499,2.52977937,4115.6,4115.5,14.5]
[1761635712155,2.65137937,4115.6,4115.5,14.5]
[1761635712988,0.2216,4115.6,4115.5,14.5]
[1761635713767,0.1226,4115.6,4115.5,14.5]
[1761635714693,0.2216,4115.6,4115.5,14.5]
[1761635714986,2.65137937,4115.6,4115.5,14.5]
[1761635715374,0.1226,4115.6,4115.5,14.5]
[1761635715683,0.001,4115.6,4115.5,14.5]
[1761635716385,0.001,4115.6,4115.5,19.2218875]
[1761635718703,0.001,4115.6,4115.5,21.1825915]
[1761635721507,0.001,4116.0,4115.9,2.42960227]
[1761635721707,0.001,4116.0,4115.9,12.69289829]
[1761635721911,0.001,4116.0,4115.9,13.25530227]
[1761635722220,0.001,4116.0,4115.9,29.74887175]
[1761635723174,0.001,4116.0,4115.9,22.91377175]
[1761635723420,0.001,4116.0,4115.9,18.4906]
[1761635723725,0.001,4116.0,4115.9,20.92020227]
[1761635725817,0.001,4116.0,4115.9,21.38530227]
[1761635728331,0.001,4116.0,4115.9,18.4906]
[1761635728920,0.1,4116.0,4115.9,18.4906]
[1761635729509,0.001,4116.0,4115.9,18.4906]
[1761635729713,0.001,4116.0,4115.9,20.92020227]
[1761635730530,0.001,4116.0,4115.9,23.25519167]
[1761635735334,0.001,4116.0,4115.9,20.92020227]
[1761635738964,0.001,4116.0,4115.9,21.38680227]
[1761635739662,0.001,4116.0,4115.9,18.4906]
[1761635740034,0.001,4116.0,4115.9,20.92020227]
[1761635740734,0.001,4116.0,4115.9,27.29020227]
[1761635741159,0.001,4116.0,4115.9,24.8606]
[1761635741375,0.001,4116.0,4115.9,18.369]
[1761635741580,0.001,4116.0,4115.9,20.79860227]
[1761635741958,0.001,4116.0,4115.9,18.369]
[1761635744160,0.0738,4116.0,4115.9,18.369]
[1761635744795,0.0738,4116.0,4115.9,20.79860227]
[1761635745090,0.0738,4116.0,4115.9,16.92960227]
[1761635745291,0.0738,4116.0,4115.9,14.5]
[1761635746193,0.0738,4116.0,4115.9,20.28]
[1761635746893,0.1728,4116.0,4115.9,20.28]
[1761635747275,2.60234324,4116.0,4115.9,20.28]
[1761635748375,2.72394324,4116.0,4115.9,20.28]
[1761635750399,0.0738,4116.0,4115.9,20.28]
[1761635752203,0.0738,4116.0,4115.9,24.149]
[1761635752902,2.60234324,4116.0,4115.9,24.149]
[1761635753203,0.0738,4116.0,4115.9,24.149]
[1761635760622,0.0738,4116.0,4115.9,26.57860227]
[1761635760907,0.0738,4116.0,4115.9,28.68380463]
[1761635761206,0.0738,4116.0,4115.9,28.80540463]
[1761635763590,0.0738,4116.0,4115.9,33.90554385]
[1761635764235,0.0738,4116.0,4115.9,40.27554385]
[1761635765006,0.001,4116.3,4116.2,2.42942519]
[1761635765313,0.001,4116.3,4116.2,5.04036474]
[1761635765532,0.001,4116.3,4116.2,5.60167049]
[1761635765735,0.001,4116.3,4116.2,20.10167049]
[1761635770048,0.001,4116.9,4116.6,6.22138913]
[1761635770546,0.001,4116.9,4116.6,13.14858913]
[1761635770707,0.001,4116.9,4116.6,29.20637876]
[1761635772052,0.011,4116.8,4116.6,28.77077876]
[1761635772453,0.011,4116.8,4116.6,29.20637876]
[1761635774850,0.011,4116.8,4116.6,28.77077876]
[1761635775365,0.011,4116.8,4116.6,29.20637876]
[1761635775845,0.001,4117.1,4117.0,2.42895312]
[1761635776046,0.001,4117.1,4117.0,6.20815312]
[1761635776362,0.001,4117.1,4117.0,6.32975312]
[1761635776544,0.001,4117.1,4117.0,20.82975312]
[1761635777961,0.001,4117.1,4117.0,21.26535312]
[1761635778264,0.001,4117.1,4117.0,23.62189842]
[1761635778766,0.001,4117.1,4117.0,23.18629842]
[1761635779374,0.001,4117.1,4117.0,20.7573453]
[1761635779881,0.001,4117.1,4117.0,23.18629842]
[1761635782892,0.001,4117.1,4117.0,20.7573453]
[1761635784084,0.001,4117.1,4117.0,18.4008]
[1761635784588,0.1,4117.1,4117.0,18.4008]
[1761635785102,0.001,4117.1,4117.0,18.4008]
[1761635785584,0.001,4117.1,4117.0,20.82975312]
[1761635785754,0.001,4117.1,4117.0,18.4008]
[1761635787706,0.001,4117.1,4117.0,22.04889341]
[1761635787871,0.001,4117.1,4117.0,19.61994029]
[1761635789372,0.001,4117.1,4117.0,20.05554029]
[1761635789891,0.001,4117.1,4117.0,19.61994029]
[1761635790109,0.001,4117.1,4117.0,18.4008]
[1761635790667,0.001,4117.1,4117.0,18.2792]
[1761635795476,0.001,4117.1,4117.0,20.70815312]
[1761635795811,0.001,4117.1,4117.0,21.18025312]
[1761635796007,0.001,4117.1,4117.0,18.7513]
[1761635796174,0.001,4117.1,4117.0,18.2792]
[1761635796377,0.001,4117.1,4117.0,19.99488658]
[1761635797205,0.001,4117.1,4117.0,22.4238397]
[1761635797412,0.001,4117.1,4117.0,22.8959397]
[1761635799399,0.001,4117.1,4117.0,20.46698658]
[1761635799777,0.001,4117.1,4117.0,22.8959397]
[1761635800800,0.001,4117.1,4117.0,23.0175397]
[1761635801583,0.001,4117.2,4117.1,2.83439812]
[1761635801781,0.001,4117.2,4117.1,16.07013236]
[1761635801989,0.001,4117.2,4117.1,16.04584342]
[1761635802193,0.001,4117.2,4117.1,24.17584342]
[1761635802390,0.001,4117.2,4117.1,32.10104342]
[1761635806931,0.001,4117.2,4117.1,32.37817766]
[1761635807216,0.001,4117.2,4117.1,32.39399969]
[1761635807731,0.001,4117.2,4117.1,40.88130857]
[1761635807887,0.001,4117.6,4117.5,8.6330166]
[1761635808087,0.001,4117.6,4117.5,20.11941727]
[1761635808397,0.001,4117.6,4117.5,20.59151727]
[1761635808602,0.001,4117.6,4117.5,35.18867008]
[1761635808905,0.115,4119.4,4118.0,6.59906728]
[1761635809107,0.115,4119.4,4118.0,17.21272172]
[1761635809310,2.52670785,4119.2,4118.0,19.64893612]
[1761635809510,0.099,4119.2,4118.0,34.24608869]
[1761635811525,0.001,4119.3,4118.0,34.36768869]
[1761635812424,0.099,4119.2,4118.0,34.36768869]
[1761635813103,0.099,4119.2,4118.0,40.14768869]
[1761635814732,0.001,4119.3,4118.0,40.14768869]
[1761635815224,0.1,4119.3,4118.0,40.14768869]
[1761635815525,0.099,4119.2,4118.0,40.14768869]
[1761635816741,0.099,4119.2,4118.7,7.077109]
[1761635816929,0.001,4119.3,4118.7,7.7848199]
[1761635817126,0.001,4119.3,4118.7,7.9064199]
[1761635817443,0.001,4119.3,4118.7,22.4064199]
[1761635817623,0.099,4119.2,4118.7,19.97846934]
[1761635818027,0.099,4119.2,4118.7,22.4064199]
[1761635819821,0.099,4119.2,4118.7,26.1706199]
[1761635820544,0.001,4119.3,4118.7,26.1706199]
[1761635820732,0.001,4119.3,4118.7,26.2696199]
[1761635822117,0.001,4119.3,4118.7,23.84166934]
[1761635822319,0.001,4119.3,4118.7,26.2696199]
[1761635822658,0.1,4119.3,4118.7,26.2696199]
[1761635823360,2.52761782,4119.3,4118.7,26.2696199]
[1761635823714,2.52760065,4119.3,4118.7,19.5980149]
[1761635824158,2.52760065,4119.3,4118.7,22.02596546]
[1761635824357,0.011,4118.8,4118.7,22.02596546]
[1761635825969,0.011,4118.8,4118.7,19.5980149]
[1761635827543,0.011,4118.8,4118.7,19.4990149]
[1761635828550,0.011,4118.8,4118.7,27.70396546]
[1761635829247,0.011,4118.8,4118.7,24.8705109]
[1761635829467,0.011,4118.8,4118.7,31.9476199]
[1761635829644,6.68038787,4120.8,4119.0,0.405504]
[1761635829645,0.001,4119.7,4119.0,0.405504]
[1761635829845,0.001,4119.7,4119.6,6.67107457]
[1761635830258,0.001,4119.7,4119.6,21.17107457]
[1761635830772,0.001,4119.7,4119.6,14.5]
[1761635831504,0.001,4119.7,4119.6,16.92742013]
[1761635831788,0.001,4119.7,4119.6,19.28396543]
[1761635832690,0.001,4119.7,4119.6,16.8565453]
[1761635833366,0.001,4119.7,4119.6,21.10019974]
[1761635833689,0.001,4119.7,4119.6,23.52761987]
[1761635835563,0.001,4119.7,4119.6,27.69732387]
[1761635836089,0.001,4119.7,4119.6,28.13192387]
[1761635836487,0.001,4119.7,4119.6,38.74557831]
[1761635836687,0.01,4120.8,4119.7,8.15126521]
[1761635836989,0.01,4120.8,4119.7,10.94241051]
[1761635837356,0.01,4120.8,4119.7,25.44241051]
[1761635837686,0.01,4120.8,4119.7,21.67921051]
[1761635839629,0.01,4120.8,4119.7,21.80081051]
[1761635839910,0.01,4120.8,4119.7,21.93121051]
[1761635842174,0.01,4120.8,4119.7,27.70821051]
[1761635842875,0.001,4120.3,4119.7,27.70821051]
[1761635844118,0.001,4120.3,4119.7,27.30270651]
[1761635844411,0.001,4120.3,4119.7,27.70821051]
[1761635845239,1e-08,4119.8,4119.7,27.70821051]
[1761635845415,0.001,4120.3,4120.2,2.83257064]
[1761635845620,0.001,4120.3,4120.2,8.06106695]
[1761635845814,0.001,4120.3,4120.2,8.15839629]
[1761635845985,0.001,4120.3,4120.2,22.65839629]
[1761635846184,0.001,4120.3,4120.2,22.78819629]
[1761635848323,0.001,4120.3,4120.2,17.98834185]
[1761635848481,0.001,4120.3,4120.2,22.23199629]
[1761635848686,0.001,4120.3,4120.2,22.66659629]
[1761635849099,0.001,4120.3,4120.2,15.15577121]
[1761635849300,0.001,4120.3,4120.2,14.6298]
[1761635849921,0.001,4120.3,4120.2,14.5]
[1761635850510,0.001,4120.3,4120.2,18.2632]
[1761635850918,0.001,4120.3,4120.2,14.5]
[1761635850919,0.1006,4120.3,4120.2,14.5]
[1761635851526,2.78035707,4120.3,4120.2,14.5]
[1761635852160,2.4272693,4119.9,4119.7,5.777]
[1761635852471,0.1779,4120.2,4119.7,5.777]
[1761635852772,0.0798,4119.8,4119.7,5.777]
[1761635853116,2.60610229,4119.8,4119.7,20.277]
[1761635853366,2.8713932,4119.8,4119.7,20.277]
[1761635857124,7.11504764,4119.8,4119.7,20.277]
[1761635857975,2.8713932,4119.8,4119.7,20.277]
[1761635858176,0.1788,4119.8,4119.7,20.277]
[1761635858333,2.72770229,4119.8,4119.7,20.277]
[1761635860642,6.97135673,4119.8,4119.7,20.277]
[1761635861611,6.97135673,4119.8,4119.7,5.777]
[1761635861612,8.40495673,4119.8,4119.7,5.777]
[1761635862174,4.16130229,4119.8,4119.7,5.777]
[1761635862351,0.0798,4119.8,4119.7,5.777]
[1761635862874,0.001,4120.2,4119.7,5.777]
[1761635863043,0.1,4120.2,4119.7,5.777]
[1761635863250,0.1,4120.2,4119.8,14.5]
[1761635863845,2.52709223,4120.2,4119.8,14.5]
[1761635864085,0.1,4120.2,4119.8,14.5]
[1761635864292,2.42713302,4120.1,4119.8,14.5]
[1761635864586,0.1,4120.2,4119.8,14.5]
[1761635864793,0.0798,4119.9,4119.8,14.5]
[1761635866511,2.86674425,4119.9,4119.8,14.5]
[1761635866720,2.42730229,4119.8,4119.7,5.777]
[1761635866922,6.76995673,4119.8,4119.7,5.777]
[1761635867130,2.52630229,4119.8,4119.7,20.277]
[1761635867276,2.42730229,4119.8,4119.7,20.277]
[1761635867802,2.52630229,4119.8,4119.7,20.277]
[1761635870879,2.52630229,4119.8,4119.7,5.777]
[1761635871502,2.64790229,4119.8,4119.7,20.277]
[1761635871910,3.3765838,4119.8,4119.7,20.277]
[1761635874407,3.3765838,4119.8,4119.7,5.777]
[1761635874889,3.3765838,4119.8,4119.7,20.277]
[1761635875414,3.3765838,4119.8,4119.7,5.777]
[1761635875617,4.9317838,4119.8,4119.7,5.777]
[1761635878604,3.98256121,4119.7,4119.6,0.002]
[1761635878812,9.1735981,4119.7,4119.6,0.002]
[1761635881905,10.3865981,4119.7,4119.6,0.002]
[1761635883029,10.7921021,4119.7,4119.6,0.002]
[1761635883233,9.07483381,4119.3,4119.2,1e-08]
[1761635883524,9.60193781,4119.3,4118.0,0.002]
[1761635883740,9.07530536,4118.5,4118.4,1e-08]
[1761635883898,9.19690536,4118.5,4118.4,1e-08]
[1761635884094,9.29590536,4118.5,4118.4,1e-08]
[1761635884297,9.39311058,4118.5,4118.4,1e-08]